Workbook

Sheet Sheet1
A4: INSTRUCTIONS: Use this form when a single information collection document involves multiple reporting and recordkeeping requirements. The totals of the figures in cols. should be entered in item 13 of OMB-83-1: cols. (D) &/or (I) = 13a (respondent is only counted once); cols. F & I = 13b; cols. H & K = 13c. (F)Total/(D)Total = (E)Average (H)Total/(F)Total = (G)Average (K)Total/(I)Total = (J)Average NOTE: The columns will calculate automatically. If Col. E's response is something other than annually, i.e., 1/6 years, list as "1/6" & decimal will display. | I4: TITLE OF INFORMATION COLLECTION DOCUMENT | N4: OMB NO.
I6: Notice of Request for Revision to and Extension of a Currently Approved Information Collection; United States Warehouse Act (USWA) | N6: 0581-0305
N9: DATE PREPARED
N11: 2020-09-03
A13: IDENTIFICATION OF REPORTING OR RECORDKEEPING REQUIREMENT | H13: ANNUAL BURDEN
H15: REPORTS | M15: RECORDS
O17: TOTAL
G18: FORMS NO (S) | H18: NO. OF | I18: NO OF | J18: TOTAL ANNUAL | K18: HOURS | L18: TOTAL | M18: NO. OF | N18: ANNUAL | O18: RECORD-
A19: SECTION OF | B19: DESCRIPTION | G19: (If "none" | H19: RESPONDENTS | I19: RESPONSES | J19: RESPONSES | K19: PER | L19: HOURS | M19: RECORD- | N19: HOURS PER | O19: KEEPING HOURS
A20: REGS. | G20: so state) | I20: PER | J20: (Col. D x E) | K20: RESPONSE | L20: (Col. F x G) | M20: KEEPERS | N20: RECORD- | O20: (Col. I x J)
I21: RESPONDENT | N21: KEEPER
A22: (A) | B22: (B) | G22: (C) | H22: (D) | I22: (E) | J22: (F) | K22: (G) | L22: (H) | M22: (I) | N22: (J) | O22: (K)
A23: US Warehouse Act 735 | B23: Application for License or Modification of License for the Conduct of a Public Warehouse | G23: WA-50 | H23: 500 | I23: 1.0000 | J23: =SUM(H23*I23) -> 500.00 | K23: 0.0800 | L23: =SUM(J23*K23) -> 40.00 | O23: =SUM(M23*N23) -> 0.00
A24: USWA USWA 735; 7 CFR 1423, 7 CFR 1427.1081 | B24: Financial Statement Supplement (for Agricultural Products) | G24: WA-51-2 | H24: 3,000 | I24: 1.0000 | J24: 3,000.00 | K24: 0.7500 | L24: =SUM(J24*K24) -> 2,250.00 | O24: 0.00
A25: USWA 735 | B25: Application for a License to Inspect, Classify, Sample, and/or Weigh Agricultural Products under the United States Warehouse Act | G25: WA-53 | H25: 2,100 | I25: 1.0000 | J25: 2,100.00 | K25: 0.2500 | L25: 525.00 | O25: 0.00
A26: USWA 735 | B26: Bond to Cover Lost Paper Warehouse Receipts under the United States Warehouse Act (occasionally) | G26: WA-62 | H26: 20 | I26: 1.0000 | J26: 20.00 | K26: 0.5000 | L26: 10.00 | O26: 0.00
A27: 735 | B27: Receipt Signature Authority (occasionally) | G27: WA-70 | H27: 1,000 | I27: 1.0000 | J27: 1,000.00 | K27: 0.2500 | L27: 250.00 | O27: 0.00
A28: 735 | B28: Warehouse Operator's Bond & Related Forms | G28: WA-80 | H28: 204 | I28: 1.0000 | J28: 204.00 | K28: 0.2500 | L28: 51.00 | O28: 0.00
B29: Warehouse Operator's Bond & Related Forms (10 for each form of WA-81, WA-82, WA-83, WA-84, WA-85, WA-87, WA-88, WA-89, WA-90, WA-91) | G29: WA-81, 82, 83, 84, 85, 87, 88, 89, 90, 91 | H29: 100 | I29: 1.0000 | J29: 100.00 | K29: 0.2500 | L29: 25.00 | O29: 0.00
B30: SUBTOTAL | J30: =SUM(J23:J29) -> 6,924.00 | L30: =SUM(L23:L29) -> 3,151.00 | O30: =SUM(O23:O29) -> 0.00
B31: TOTAL OF ALL PAGES | J31: =SUM(J30+J61+J90+J120+J150+J180+J210+J240+J270) -> 17,762.00 | L31: =SUM(L30+L61+L90+L120+L150+L180+L210+L240+L270) -> 8,115.50 | M31: =SUM(M30+M61+M90+M120+M150+M180+M210+M240+M270) -> 1,249.00 | O31: =SUM(O30+O61+O90+O120+O150+O180+O210+O240+O270) -> 32,474.00
A32: TOTAL - COLUMNS "F" AND "I" = OMB 831, 13 b; COLUMNS "H" AND "K" = OMB 831, 13c | J32: =SUM(J31+M31) -> 19,011.00 | L32: =SUM(L31+O31) -> 40,589.50
A36: INSTRUCTIONS: Use this form when a single information collection document involves multiple reporting and recordkeeping requirements. The totals of the figures in cols. should be entered in item 13 of OMB-83-1: cols. (D) &/or (I) = 13a (respondent is only counted once); cols. F & I = 13b; cols. H & K = 13c. (F)Total/(D)Total = (E)Average (H)Total/(F)Total = (G)Average (K)Total/(I)Total = (J)Average NOTE: The columns will calculate automatically. If Col. E's response is something other than annually, i.e., 1/6 years, list as "1/6" & decimal will display. | I36: TITLE OF INFORMATION COLLECTION DOCUMENT | N36: OMB NO.
I38: Notice of Request for Revision to and Extension of a Currently Approved Information Collection; United States Warehouse Act (USWA) | N38: 0581-0305
N41: DATE PREPARED
N43: 2020-09-03
A45: IDENTIFICATION OF REPORTING OR RECORDKEEPING REQUIREMENT | H45: ANNUAL BURDEN
H47: REPORTS | M47: RECORDS
O49: TOTAL
G50: FORMS NO (S) | H50: NO. OF | I50: NO OF | J50: TOTAL ANNUAL | K50: HOURS | L50: TOTAL | M50: NO. OF | N50: ANNUAL | O50: RECORD-
A51: SECTION OF | B51: DESCRIPTION | G51: (If "none" | H51: RESPONDENTS | I51: RESPONSES | J51: RESPONSES | K51: PER | L51: HOURS | M51: RECORD- | N51: HOURS PER | O51: KEEPING HOURS
A52: REGS. | G52: so state) | I52: PER | J52: (Col. D x E) | K52: RESPONSE | L52: (Col. F x G) | M52: KEEPERS | N52: RECORD- | O52: (Col. I x J)
I53: RESPONDENT | N53: KEEPER
A54: (A) | B54: (B) | G54: (C) | H54: (D) | I54: (E) | J54: (F) | K54: (G) | L54: (H) | M54: (I) | N54: (J) | O54: (K)
A55: USWA 735 | B55: Returned & Destroyed Receipt Record | G55: WA-105 | H55: 100 | I55: 1.0000 | J55: =SUM(H55*I55) -> 100.00 | K55: 0.2500 | L55: =SUM(J55*K55) -> 25.00 | O55: =SUM(M55*N55) -> 0.00
A56: USWA 735, 7 CFR 1423.9 | B56: Memorandum of Adjustments (occasionally) | G56: WA-125 | H56: 700 | I56: 1.0000 | J56: 700.00 | K56: 0.5000 | L56: 350.00 | O56: 0.00
A57: 7 CFR 1427.1082, 7 CFR 1427.1084 | B57: Memorandum of Adjustments (Electronic response) (occasionally) | G57: WA-125ER | H57: 20 | I57: 1.0000 | J57: 20.00 | K57: 0.5000 | L57: 10.00 | O57: 0.00
A58: USWA 735 | B58: Certificate of Loss of Canceled/Uncanceled Warehouse Receipts (Affidavit) | G58: WA-139 | H58: 200 | I58: 1.0000 | J58: 200.00 | K58: 0.2500 | L58: 50.00 | O58: 0.00
A59: USWA 735 | B59: Agreement to Assume Agricultural Product Storage Obligations | G59: WA-140 | H59: 77 | I59: 1.0000 | J59: 77.00 | K59: 0.2500 | L59: 19.25 | O59: 0.00
A60: USWA 735 | B60: Agreement with Respect to Agricultural Product Storage Obligations | G60: WA-141 | H60: 77 | I60: 1.0000 | J60: 77.00 | K60: 0.2500 | L60: 19.25 | O60: 0.00
B61: SUBTOTAL | J61: =SUM(J55:J60) -> 1,174.00 | L61: =SUM(L55:L60) -> 473.50 | M61: =SUM(M55:M60) -> 0 | O61: =SUM(O55:O60) -> 0.00
A65: INSTRUCTIONS: Use this form when a single information collection document involves multiple reporting and recordkeeping requirements. The totals of the figures in cols. should be entered in item 13 of OMB-83-1: cols. (D) &/or (I) = 13a (respondent is only counted once); cols. F & I = 13b; cols. H & K = 13c. (F)Total/(D)Total = (E)Average (H)Total/(F)Total = (G)Average (K)Total/(I)Total = (J)Average NOTE: The columns will calculate automatically. If Col. E's response is something other than annually, i.e., 1/6 years, list as "1/6" & decimal will display. | I65: TITLE OF INFORMATION COLLECTION DOCUMENT | N65: OMB NO.
I67: Notice of Request for Revision to and Extension of a Currently Approved Information Collection; United States Warehouse Act (USWA) | N67: 0581-0305
N70: DATE PREPARED
N72: 2020-09-03
A74: IDENTIFICATION OF REPORTING OR RECORDKEEPING REQUIREMENT | H74: ANNUAL BURDEN
H76: REPORTS | M76: RECORDS
O78: TOTAL
G79: FORMS NO (S) | H79: NO. OF | I79: NO OF | J79: TOTAL ANNUAL | K79: HOURS | L79: TOTAL | M79: NO. OF | N79: ANNUAL | O79: RECORD-
A80: SECTION OF | B80: DESCRIPTION | G80: (If "none" | H80: RESPONDENTS | I80: RESPONSES | J80: RESPONSES | K80: PER | L80: HOURS | M80: RECORD- | N80: HOURS PER | O80: KEEPING HOURS
A81: REGS. | G81: so state) | I81: PER | J81: (Col. D x E) | K81: RESPONSE | L81: (Col. F x G) | M81: KEEPERS | N81: RECORD- | O81: (Col. I x J)
I82: RESPONDENT | N82: KEEPER
A83: (A) | B83: (B) | G83: (C) | H83: (D) | I83: (E) | J83: (F) | K83: (G) | L83: (H) | M83: (I) | N83: (J) | O83: (K)
A84: USWA 735, 7 CFR 1427.1084 | B84: Warehouse Examination Reports (Cotton) (10 min for each form) | G84: WA-220, WA-221, WA-222 | H84: 140 | I84: 1.0000 | J84: =SUM(H84*I84) -> 140.00 | K84: 0.5000 | L84: =SUM(J84*K84) -> 70.00 | O84: =SUM(M84*N84) -> 0.00
A85: USWA 735 | B85: Warehouse Operator's Statement and Examiner's Comparison of Obligated Stocks | G85: WA-225 | H85: 140 | I85: 1.0000 | J85: 140.00 | K85: 0.5000 | L85: 70.00 | O85: 0.00
A86: USWA 735 | B86: Order for Printing U.S. Warehouse Receipt Forms | G86: WA-237 | H86: 50 | I86: 1.0000 | J86: 50.00 | K86: 0.1700 | L86: 8.50 | O86: 0.00
A87: USWA 735, 7 CFR 1423.9 | B87: Warehouse Examination Report (Grain & Misc.) (15 min for each form) | G87: WA-302, WA-303 | H87: 3,200 | I87: 1.0000 | J87: 3,200.00 | K87: 0.5000 | L87: 1,600.00 | O87: 0.00
A88: USWA 735, 7 CFR 1423.9, 7 CFR 1427.1084 | B88: Warehouse Operator's Statement and Examiner's Comparison of Obligations and Stocks | G88: WA-308 | H88: 3,200 | I88: 1.0000 | J88: 3,200.00 | K88: 0.5000 | L88: 1,600.00 | O88: 0.00
A89: USWA 735 | B89: Schedule of Charges -- Tariff for Storing and Handling Agricultural Products | G89: WA-372 (no required format) | H89: 800 | I89: 1.0000 | J89: 800.00 | K89: 0.2500 | L89: 200.00 | O89: 0.00
B90: SUBTOTAL | J90: =SUM(J84:J89) -> 7,530.00 | L90: =SUM(L84:L89) -> 3,548.50 | M90: =SUM(M84:M89) -> 0 | O90: =SUM(O84:O89) -> 0.00
A95: INSTRUCTIONS: Use this form when a single information collection document involves multiple reporting and recordkeeping requirements. The totals of the figures in cols. should be entered in item 13 of OMB-83-1: cols. (D) &/or (I) = 13a (respondent is only counted once); cols. F & I = 13b; cols. H & K = 13c. (F)Total/(D)Total = (E)Average (H)Total/(F)Total = (G)Average (K)Total/(I)Total = (J)Average NOTE: The columns will calculate automatically. If Col. E's response is something other than annually, i.e., 1/6 years, list as "1/6" & decimal will display. | I95: TITLE OF INFORMATION COLLECTION DOCUMENT | N95: OMB NO.
I97: Notice of Request for Revision to and Extension of a Currently Approved Information Collection; United States Warehouse Act (USWA) | N97: 0581-0305
N100: DATE PREPARED
N102: 2020-09-03
A104: IDENTIFICATION OF REPORTING OR RECORDKEEPING REQUIREMENT | H104: ANNUAL BURDEN
H106: REPORTS | M106: RECORDS
O108: TOTAL
G109: FORMS NO (S) | H109: NO. OF | I109: NO OF | J109: TOTAL ANNUAL | K109: HOURS | L109: TOTAL | M109: NO. OF | N109: ANNUAL | O109: RECORD-
A110: SECTION OF | B110: DESCRIPTION | G110: (If "none" | H110: RESPONDENTS | I110: RESPONSES | J110: RESPONSES | K110: PER | L110: HOURS | M110: RECORD- | N110: HOURS PER | O110: KEEPING HOURS
A111: REGS. | G111: so state) | I111: PER | J111: (Col. D x E) | K111: RESPONSE | L111: (Col. F x G) | M111: KEEPERS | N111: RECORD- | O111: (Col. I x J)
I112: RESPONDENT | N112: KEEPER
A113: (A) | B113: (B) | G113: (C) | H113: (D) | I113: (E) | J113: (F) | K113: (G) | L113: (H) | M113: (I) | N113: (J) | O113: (K)
A114: USWA 735 | B114: Licensing Agreement for Export Food Aid Commodity Warehouse Operators | G114: WA-502 | H114: 10 | I114: 1.0000 | J114: =SUM(H114*I114) -> 10.00 | K114: 0.7500 | L114: =SUM(J114*K114) -> 7.50 | M114: 10 | N114: 26.000 | O114: =SUM(M114*N114) -> 260.00
A115: 7 CFR 1423, USWA 735 | B115: Original Warehouse Examination Report (Processed Commodities) | G115: WA-561 | H115: 50 | I115: 1.0000 | J115: 50.00 | K115: 0.5000 | L115: 25.00 | O115: 0.00
A116: 7 CFR 1423.9, USWA 735 | B116: Subsequent Examination Report (Processed Commodities) | G116: WA-562 | H116: 50 | I116: 1.0000 | J116: 50.00 | K116: 0.5000 | L116: 25.00 | O116: 0.00
A117: 7 CFR 1423.9, USWA 735 | B117: Inventory Adjustment Notice | G117: WA-570 | H117: 50 | I117: 1.0000 | J117: 50.00 | K117: 0.5000 | L117: 25.00 | O117: 0.00
A118: 7 CFR 1423.9, USWA 735 | B118: Port Facility Examination Checklist | G118: WA-580 | H118: 10 | I118: 1.0000 | J118: 10.00 | K118: 0.5000 | L118: 5.00 | O118: 0.00
A119: 7 CFR 1423.9, USWA 735 | B119: Transloading Examination Checklist | G119: WA-580-1 | H119: 10 | I119: 1.0000 | J119: 10.00 | K119: 0.5000 | L119: 5.00 | O119: 0.00
B120: SUBTOTAL | J120: =SUM(J114:J119) -> 180.00 | L120: =SUM(L114:L119) -> 92.50 | M120: =SUM(M114:M119) -> 10 | O120: =SUM(O114:O119) -> 260.00
A125: INSTRUCTIONS: Use this form when a single information collection document involves multiple reporting and recordkeeping requirements. The totals of the figures in cols. should be entered in item 13 of OMB-83-1: cols. (D) &/or (I) = 13a (respondent is only counted once); cols. F & I = 13b; cols. H & K = 13c. (F)Total/(D)Total = (E)Average (H)Total/(F)Total = (G)Average (K)Total/(I)Total = (J)Average NOTE: The columns will calculate automatically. If Col. E's response is something other than annually, i.e., 1/6 years, list as "1/6" & decimal will display. | I125: TITLE OF INFORMATION COLLECTION DOCUMENT | N125: OMB NO.
I127: Notice of Request for Revision to and Extension of a Currently Approved Information Collection; United States Warehouse Act (USWA) | N127: 0581-0305
N130: DATE PREPARED
N132: 2020-09-03
A134: IDENTIFICATION OF REPORTING OR RECORDKEEPING REQUIREMENT | H134: ANNUAL BURDEN
H136: REPORTS | M136: RECORDS
O138: TOTAL
G139: FORMS NO (S) | H139: NO. OF | I139: NO OF | J139: TOTAL ANNUAL | K139: HOURS | L139: TOTAL | M139: NO. OF | N139: ANNUAL | O139: RECORD-
A140: SECTION OF | B140: DESCRIPTION | G140: (If "none" | H140: RESPONDENTS | I140: RESPONSES | J140: RESPONSES | K140: PER | L140: HOURS | M140: RECORD- | N140: HOURS PER | O140: KEEPING HOURS
A141: REGS. | G141: so state) | I141: PER | J141: (Col. D x E) | K141: RESPONSE | L141: (Col. F x G) | M141: KEEPERS | N141: RECORD- | O141: (Col. I x J)
I142: RESPONDENT | N142: KEEPER
A143: (A) | B143: (B) | G143: (C) | H143: (D) | I143: (E) | J143: (F) | K143: (G) | L143: (H) | M143: (I) | N143: (J) | O143: (K)
A144: USWA 735 | B144: Addendum to the Terms and Conditions of the Licensing/Provider Agreement | G144: WA-400 | H144: 100 | I144: 1.0000 | J144: =SUM(H144*I144) -> 100.00 | K144: 0.5000 | L144: =SUM(J144*K144) -> 50.00
A145: USWA 735 | B145: Licensing Agreement for Cotton Warehouse Operators | G145: WA-401 | H145: 204 | I145: 1.0000 | J145: 204.00 | K145: 0.5000 | L145: 102.00 | M145: 204 | N145: 26.000 | O145: =SUM(M145*N145) -> 5,304.00
A146: USWA 735 | B146: Licensing Agreement for Grain and Rice Warehouse Operators | G146: WA-402 | H146: 1,000 | I146: 1.0000 | J146: 1,000.00 | K146: 0.5000 | L146: 500.00 | M146: 1,000 | N146: 26.000 | O146: =SUM(M146*N146) -> 26,000.00
A147: USWA 735 | B147: Licensing Agreement for Wool Warehouses | G147: WA-403 | H147: 0 | I147: 0.0000 | J147: 0.00 | K147: 0.0000 | L147: 0.00 | O147: =SUM(M147*N147) -> 0.00
A148: USWA 735 | B148: Licensing Agreement for Tobacco Warehouses | G148: WA-404 | H148: 0 | I148: 0.0000 | J148: 0.00 | K148: 0.0000 | L148: 0.00 | O148: =SUM(M148*N148) -> 0.00
A149: USWA 735 | B149: Licensing Agreement for Nut Warehouse Operators | G149: WA-405 | H149: 10 | I149: 1.0000 | J149: 10.00 | K149: 0.5000 | L149: 5.00 | M149: 10 | N149: 26.000 | O149: =SUM(M149*N149) -> 260.00
B150: SUBTOTAL | J150: =SUM(J144:J149) -> 1,314.00 | L150: =SUM(L144:L149) -> 657.00 | M150: =SUM(M144:M149) -> 1,214 | O150: =SUM(O144:O149) -> 31,564.00
A155: INSTRUCTIONS: Use this form when a single information collection document involves multiple reporting and recordkeeping requirements. The totals of the figures in cols. should be entered in item 13 of OMB-83-1: cols. (D) &/or (I) = 13a (respondent is only counted once); cols. F & I = 13b; cols. H & K = 13c. (F)Total/(D)Total = (E)Average (H)Total/(F)Total = (G)Average (K)Total/(I)Total = (J)Average NOTE: The columns will calculate automatically. If Col. E's response is something other than annually, i.e., 1/6 years, list as "1/6" & decimal will display. | I155: TITLE OF INFORMATION COLLECTION DOCUMENT | N155: OMB NO.
I157: Notice of Request for Revision to and Extension of a Currently Approved Information Collection; United States Warehouse Act (USWA) | N157: 0581-0305
N160: DATE PREPARED
N162: 2020-09-03
A164: IDENTIFICATION OF REPORTING OR RECORDKEEPING REQUIREMENT | H164: ANNUAL BURDEN
H166: REPORTS | M166: RECORDS
O168: TOTAL
G169: FORMS NO (S) | H169: NO. OF | I169: NO OF | J169: TOTAL ANNUAL | K169: HOURS | L169: TOTAL | M169: NO. OF | N169: ANNUAL | O169: RECORD-
A170: SECTION OF | B170: DESCRIPTION | G170: (If "none" | H170: RESPONDENTS | I170: RESPONSES | J170: RESPONSES | K170: PER | L170: HOURS | M170: RECORD- | N170: HOURS PER | O170: KEEPING HOURS
A171: REGS. | G171: so state) | I171: PER | J171: (Col. D x E) | K171: RESPONSE | L171: (Col. F x G) | M171: KEEPERS | N171: RECORD- | O171: (Col. I x J)
I172: RESPONDENT | N172: KEEPER
A173: (A) | B173: (B) | G173: (C) | H173: (D) | I173: (E) | J173: (F) | K173: (G) | L173: (H) | M173: (I) | N173: (J) | O173: (K)
A174: USWA 735 | B174: Licensing Agreement for Dry Bean Warehouse Operators | G174: WA-406 | H174: 15 | I174: 1.0000 | J174: =SUM(H174*I174) -> 15.00 | K174: 0.5000 | L174: 8.00 | M174: 15 | N174: 26.000 | O174: =SUM(M174*N174) -> 390.00
A175: USWA 735 | B175: Licensing Agreement for Sweeteners Warehouses | G175: WA-407 | H175: 0 | I175: 0.0000 | J175: 0.00 | K175: 0.0000 | L175: =SUM(J175*K175) -> 0.00 | O175: 0.00
A176: USWA 735 | B176: Licensing Agreement for Cottonseed Warehouses | G176: WA-408 | H176: 0 | I176: 0.0000 | J176: 0.00 | K176: 0.0000 | L176: =SUM(J176*K176) -> 0.00 | O176: 0.00
A177: USWA 735 | B177: Provider Agreement to Electronically File & Maintain Warehouse Receipts & USWA Documents | G177: WA-460 | H177: 10 | I177: 1.0000 | J177: 10.00 | K177: 0.5000 | L177: =SUM(J177*K177) -> 5.00 | M177: 10 | N177: 26.000 | O177: 260.00
A178: USWA 735 | B178: Addendum to the Provider Agreement to Electronically Maintain Cotton Warehouse Receipts | G178: WA-460-1 | H178: 10 | I178: 1.0000 | J178: 10.00 | K178: 0.5000 | L178: =SUM(J178*K178) -> 5.00 | O178: 0.00
A179: USWA 735 | B179: Addendum to the Provider Agreement to Electronically File & Maintain Grain Warehouse Receipts and USWA Documents | G179: WA-460-2 | H179: 10 | I179: 1.0000 | J179: 10.00 | K179: 0.5000 | L179: =SUM(J179*K179) -> 5.00 | O179: 0.00
B180: SUBTOTAL | J180: =SUM(J174:J179) -> 45.00 | L180: =SUM(L174:L179) -> 23.00 | M180: =SUM(M174:M179) -> 25 | O180: =SUM(O174:O179) -> 650.00
A185: INSTRUCTIONS: Use this form when a single information collection document involves multiple reporting and recordkeeping requirements. The totals of the figures in cols. should be entered in item 13 of OMB-83-1: cols. (D) &/or (I) = 13a (respondent is only counted once); cols. F & I = 13b; cols. H & K = 13c. (F)Total/(D)Total = (E)Average (H)Total/(F)Total = (G)Average (K)Total/(I)Total = (J)Average NOTE: The columns will calculate automatically. If Col. E's response is something other than annually, i.e., 1/6 years, list as "1/6" & decimal will display. | I185: TITLE OF INFORMATION COLLECTION DOCUMENT | N185: OMB NO.
I187: Notice of Request for Revision to and Extension of a Currently Approved Information Collection; United States Warehouse Act (USWA) | N187: 0581-0305
N190: DATE PREPARED
N192: 2020-09-03
A194: IDENTIFICATION OF REPORTING OR RECORDKEEPING REQUIREMENT | H194: ANNUAL BURDEN
H196: REPORTS | M196: RECORDS
O198: TOTAL
G199: FORMS NO (S) | H199: NO. OF | I199: NO OF | J199: TOTAL ANNUAL | K199: HOURS | L199: TOTAL | M199: NO. OF | N199: ANNUAL | O199: RECORD-
A200: SECTION OF | B200: DESCRIPTION | G200: (If "none" | H200: RESPONDENTS | I200: RESPONSES | J200: RESPONSES | K200: PER | L200: HOURS | M200: RECORD- | N200: HOURS PER | O200: KEEPING HOURS
A201: REGS. | G201: so state) | I201: PER | J201: (Col. D x E) | K201: RESPONSE | L201: (Col. F x G) | M201: KEEPERS | N201: RECORD- | O201: (Col. I x J)
I202: RESPONDENT | N202: KEEPER
A203: (A) | B203: (B) | G203: (C) | H203: (D) | I203: (E) | J203: (F) | K203: (G) | L203: (H) | M203: (I) | N203: (J) | O203: (K)
A204: USWA 735 | B204: Addendum to the Provider Agreement to Electronically File & Maintain Wool Warehouse Receipts | G204: WA-460-3 | H204: 0 | I204: 0.0000 | J204: =SUM(H204*I204) -> 0.00 | K204: 0.0000 | L204: =SUM(J204*K204) -> 0.00 | O204: =SUM(M204*N204) -> 0.00
A205: USWA 735 | B205: Addendum to the Provider Agreement to Electronically File & Maintain Tobacco Warehouse Receipts | G205: WA-460-4 | H205: 0 | I205: 0.0000 | J205: 0.00 | K205: 0.0000 | L205: 0.00 | O205: 0.00
A206: USWA 735 | B206: Addendum to the Provider Agreement to Electronically File & Maintain Nut Warehouse Receipts | G206: WA-460-5 | H206: 0 | I206: 0.0000 | J206: 0.00 | K206: 0.0000 | L206: 0.00 | O206: 0.00
A207: USWA 735 | B207: Addendum to the Provider Agreement to Electronically File & Maintain Dry Bean Warehouse Receipts | G207: WA-460-6 | H207: 0 | I207: 0.0000 | J207: 0.00 | K207: 0.0000 | L207: 0.00 | O207: 0.00
A208: USWA 735 | B208: Addendum to the Provider Agreement to Electronically File & Maintain Sweetener Warehouse Receipts | G208: WA-460-7 | H208: 0 | I208: 0.0000 | J208: 0.00 | K208: 0.0000 | L208: 0.00 | O208: 0.00
A209: USWA 735 | B209: Addendum to the Provider Agreement to Electronically File & Maintain Cottonseed Warehouse Receipts | G209: WA-460-8 | H209: 0 | I209: 0.0000 | J209: 0.00 | K209: 0.0000 | L209: 0.00 | O209: 0.00
B210: SUBTOTAL | J210: =SUM(J204:J209) -> 0.00 | L210: =SUM(L204:L209) -> 0.00 | M210: =SUM(M204:M209) -> 0 | O210: =SUM(O204:O209) -> 0.00
A215: INSTRUCTIONS: Use this form when a single information collection document involves multiple reporting and recordkeeping requirements. The totals of the figures in cols. should be entered in item 13 of OMB-83-1: cols. (D) &/or (I) = 13a (respondent is only counted once); cols. F & I = 13b; cols. H & K = 13c. (F)Total/(D)Total = (E)Average (H)Total/(F)Total = (G)Average (K)Total/(I)Total = (J)Average NOTE: The columns will calculate automatically. If Col. E's response is something other than annually, i.e., 1/6 years, list as "1/6" & decimal will display. | I215: TITLE OF INFORMATION COLLECTION DOCUMENT | N215: OMB NO.
I217: Notice of Request for Revision to and Extension of a Currently Approved Information Collection; United States Warehouse Act (USWA) | N217: 0581-0305
N220: DATE PREPARED
N222: 2020-09-03
A224: IDENTIFICATION OF REPORTING OR RECORDKEEPING REQUIREMENT | H224: ANNUAL BURDEN
H226: REPORTS | M226: RECORDS
O228: TOTAL
G229: FORMS NO (S) | H229: NO. OF | I229: NO OF | J229: TOTAL ANNUAL | K229: HOURS | L229: TOTAL | M229: NO. OF | N229: ANNUAL | O229: RECORD-
A230: SECTION OF | B230: DESCRIPTION | G230: (If "none" | H230: RESPONDENTS | I230: RESPONSES | J230: RESPONSES | K230: PER | L230: HOURS | M230: RECORD- | N230: HOURS PER | O230: KEEPING HOURS
A231: REGS. | G231: so state) | I231: PER | J231: (Col. D x E) | K231: RESPONSE | L231: (Col. F x G) | M231: KEEPERS | N231: RECORD- | O231: (Col. I x J)
I232: RESPONDENT | N232: KEEPER
A233: (A) | B233: (B) | G233: (C) | H233: (D) | I233: (E) | J233: (F) | K233: (G) | L233: (H) | M233: (I) | N233: (J) | O233: (K)
A234: USWA 735 | B234: Addendum to the Provider Agreement to Electronically File & Maintain Rice Warehouse Receipts | G234: WA-460-9 | H234: 10 | I234: 1.0000 | J234: =SUM(H234*I234) -> 10.00 | K234: 0.5000 | L234: =SUM(J234*K234) -> 5.00 | O234: =SUM(M234*N234) -> 0.00
A235: USWA 735 | B235: Addendum to the Provider Agreement to Electronically File & Maintain Coffee Warehouse Receipts | G235: WA-460-11 | H235: 10 | I235: 1.0000 | J235: 10.00 | K235: 0.5000 | L235: 5.00 | O235: 0.00
A236: USWA 735 | B236: Addendum to the Provider Agreement to Electronically File & Maintain Cocoa Warehouse Receipts | G236: WA-460-12 | H236: 10 | I236: 1.0000 | J236: 10.00 | K236: 0.5000 | L236: 5.00 | O236: 0.00
A237: USWA 735 | B237: Addendum to the Provider Agreement to Electronically File & Maintain Orange Juice Warehouse Receipts | G237: WA-460-13 | H237: 10 | I237: 1.0000 | J237: 10.00 | K237: 0.5000 | L237: 5.00 | O237: 0.00
A238: USWA 735 | B238: Provider Agreement to Electronically File & Maintain Other Electronic Documents | G238: WA-490 | H238: 10 | I238: 1.0000 | J238: 10.00 | K238: 0.5000 | L238: 5.00 | O238: 0.00
A239: USWA 735 | B239: Addendum to the Provider Agreement to Electronically File & Maintain Other Electronic Documents | G239: WA-490-1 | H239: 10 | I239: 1.0000 | J239: 10.00 | K239: 0.5000 | L239: 5.00 | O239: 0.00
B240: SUBTOTAL | J240: =SUM(J234:J239) -> 60.00 | L240: =SUM(L234:L239) -> 30.00 | M240: =SUM(M234:M239) -> 0 | O240: =SUM(O234:O239) -> 0.00
A245: INSTRUCTIONS: Use this form when a single information collection document involves multiple reporting and recordkeeping requirements. The totals of the figures in cols. should be entered in item 13 of OMB-83-1: cols. (D) &/or (I) = 13a (respondent is only counted once); cols. F & I = 13b; cols. H & K = 13c. (F)Total/(D)Total = (E)Average (H)Total/(F)Total = (G)Average (K)Total/(I)Total = (J)Average NOTE: The columns will calculate automatically. If Col. E's response is something other than annually, i.e., 1/6 years, list as "1/6" & decimal will display. | I245: TITLE OF INFORMATION COLLECTION DOCUMENT | N245: OMB NO.
I247: Notice of Request for Revision to and Extension of a Currently Approved Information Collection; United States Warehouse Act (USWA) | N247: 0581-0305
N250: DATE PREPARED
N252: 2020-09-03
A254: IDENTIFICATION OF REPORTING OR RECORDKEEPING REQUIREMENT | H254: ANNUAL BURDEN
H256: REPORTS | M256: RECORDS
O258: TOTAL
G259: FORMS NO (S) | H259: NO. OF | I259: NO OF | J259: TOTAL ANNUAL | K259: HOURS | L259: TOTAL | M259: NO. OF | N259: ANNUAL | O259: RECORD-
A260: SECTION OF | B260: DESCRIPTION | G260: (If "none" | H260: RESPONDENTS | I260: RESPONSES | J260: RESPONSES | K260: PER | L260: HOURS | M260: RECORD- | N260: HOURS PER | O260: KEEPING HOURS
A261: REGS. | G261: so state) | I261: PER | J261: (Col. D x E) | K261: RESPONSE | L261: (Col. F x G) | M261: KEEPERS | N261: RECORD- | O261: (Col. I x J)
I262: RESPONDENT | N262: KEEPER
A263: (A) | B263: (B) | G263: (C) | H263: (D) | I263: (E) | J263: (F) | K263: (G) | L263: (H) | M263: (I) | N263: (J) | O263: (K)
A264: USWA 735, 7 CFR 1423.2, 7 CFR 1427.1082 | B264: Warehouse Operator to Submit Reports, as requested, on operations, contents, commodity conditions | G264: No required format | H264: 500 | I264: 1.0000 | J264: =SUM(H264*I264) -> 500.00 | K264: 0.2500 | L264: =SUM(J264*K264) -> 125.00 | O264: =SUM(M264*N264) -> 0.00
A265: USWA 735 | B265: Warehouse Operator to Submit Notices of Removal of Commodities from Storage | G265: No required format | H265: 25 | I265: 1.0000 | J265: 25.00 | K265: 0.4000 | L265: 10.00 | O265: 0.00
A266: USWA 735 | B266: Warehouse Operator to Report Occurrences of Disasters or Losses | G266: FAX, memo, or other appropriate means | H266: 10 | I266: 1.0000 | J266: 10.00 | K266: 0.5000 | L266: 5.00 | O266: 0.00
J267: 0.00 | L267: 0.00 | O267: 0.00
J268: 0.00 | L268: 0.00 | O268: 0.00
J269: 0.00 | L269: 0.00 | O269: 0.00
B270: SUBTOTAL | J270: =SUM(J264:J269) -> 535.00 | L270: =SUM(L264:L269) -> 140.00 | M270: =SUM(M264:M269) -> 0 | O270: =SUM(O264:O269) -> 0.00
